[Event "Late-Titled-Tuesday-Blitz-April-02-2024"]
[Site "Chess.com"]
[Date "2024.04.02"]
[Round "7"]
[White "remyrushbrooke"]
[Black "Cambek64"]
[Result "0-1"]
[WhiteElo "2260"]
[BlackElo "2516"]
[TimeControl "180+1"]
[EndTime "15:16:14 PDT"]
[Termination "Cambek64 won on time"]

1. Nf3 {[%clk 0:03:00.9]} 1... d5 {[%clk 0:01:43.4]} 2. g3 {[%clk 0:03:00.4]}
2... Nf6 {[%clk 0:01:43.1]} 3. Bg2 {[%clk 0:03:00.4]} 3... c6 {[%clk 0:01:43.4]}
4. c4 {[%clk 0:02:58.9]} 4... Bf5 {[%clk 0:01:43.7]} 5. O-O {[%clk 0:02:54.5]}
5... e6 {[%clk 0:01:42.9]} 6. cxd5 {[%clk 0:02:54.2]} 6... cxd5 {[%clk
0:01:42.1]} 7. Qb3 {[%clk 0:02:54.1]} 7... Qb6 {[%clk 0:01:40.9]} 8. Qxb6 {[%clk
0:02:53.7]} 8... axb6 {[%clk 0:01:40.3]} 9. d3 {[%clk 0:02:51.8]} 9... Nc6
{[%clk 0:01:40.5]} 10. Nh4 {[%clk 0:02:50.8]} 10... Bg4 {[%clk 0:01:34.2]} 11.
Nc3 {[%clk 0:02:27.8]} 11... Bb4 {[%clk 0:01:21.5]} 12. h3 {[%clk 0:02:25.4]}
12... Bh5 {[%clk 0:01:15.5]} 13. g4 {[%clk 0:02:24.1]} 13... Bg6 {[%clk
0:01:16.1]} 14. Nxg6 {[%clk 0:02:24.1]} 14... hxg6 {[%clk 0:01:15]} 15. a3
{[%clk 0:02:20.8]} 15... Bc5 {[%clk 0:01:10.5]} 16. Bd2 {[%clk 0:02:05.9]} 16...
Kd7 {[%clk 0:01:09.2]} 17. b4 {[%clk 0:02:04.3]} 17... Bd4 {[%clk 0:01:03.9]}
18. e3 {[%clk 0:01:58.1]} 18... Be5 {[%clk 0:01:02.9]} 19. d4 {[%clk 0:01:56.1]}
19... Bd6 {[%clk 0:00:57.9]} 20. Nb5 {[%clk 0:01:34.5]} 20... Be7 {[%clk
0:00:55.4]} 21. Rfc1 {[%clk 0:01:29.3]} 21... Rhc8 {[%clk 0:00:55.6]} 22. g5
{[%clk 0:01:02.8]} 22... Ne8 {[%clk 0:00:52.9]} 23. h4 {[%clk 0:01:01.5]} 23...
Nd6 {[%clk 0:00:52.4]} 24. Nxd6 {[%clk 0:01:00.5]} 24... Bxd6 {[%clk 0:00:52.4]}
25. f4 {[%clk 0:00:49.7]} 25... Ne7 {[%clk 0:00:50.8]} 26. e4 {[%clk 0:00:42.3]}
26... Rxc1+ {[%clk 0:00:50.2]} 27. Bxc1 {[%clk 0:00:40.9]} 27... Bxb4 {[%clk
0:00:50]} 28. Rb1 {[%clk 0:00:33.6]} 28... Ba5 {[%clk 0:00:49.5]} 29. Rb5 {[%clk
0:00:20]} 29... Rc8 {[%clk 0:00:44.3]} 30. Be3 {[%clk 0:00:15.2]} 30... Rc3
{[%clk 0:00:41.1]} 31. Bd2 {[%clk 0:00:12]} 31... Rxa3 {[%clk 0:00:31.8]} 32.
Bxa5 {[%clk 0:00:11.8]} 32... Rxa5 {[%clk 0:00:31.1]} 33. Rxb6 {[%clk 0:00:10]}
33... Kc7 {[%clk 0:00:31.6]} 34. Rb4 {[%clk 0:00:09.2]} 34... dxe4 {[%clk
0:00:31.1]} 35. Bxe4 {[%clk 0:00:08.3]} 35... Nd5 {[%clk 0:00:31.3]} 36. Bxd5
{[%clk 0:00:07]} 36... Rxd5 {[%clk 0:00:31.3]} 37. Kf2 {[%clk 0:00:07.5]} 37...
b5 {[%clk 0:00:31.2]} 38. Ke3 {[%clk 0:00:07.7]} 38... Kb6 {[%clk 0:00:31.9]}
39. Ke4 {[%clk 0:00:06.1]} 39... Ka5 {[%clk 0:00:29.8]} 40. Rb1 {[%clk
0:00:06.7]} 40... Rd7 {[%clk 0:00:29.3]} 41. Ra1+ {[%clk 0:00:04.4]} 41... Kb6
{[%clk 0:00:29.8]} 42. Ra8 {[%clk 0:00:04.4]} 42... Rb7 {[%clk 0:00:28.9]} 43.
Kd3 {[%clk 0:00:02.5]} 43... Kc6 {[%clk 0:00:26.5]} 44. Kc3 {[%clk 0:00:02]}
44... Kd5 {[%clk 0:00:26.6]} 45. Rc8 {[%clk 0:00:01.5]} 45... Ke4 {[%clk
0:00:25.8]} 0-1

[Event "Late-Titled-Tuesday-Blitz-April-02-2024"]
[Site "Chess.com"]
[Date "2024.04.02"]
[Round "7"]
[White "Shankland"]
[Black "wild3000"]
[Result "1-0"]
[WhiteElo "2890"]
[BlackElo "2415"]
[TimeControl "180+1"]
[EndTime "15:16:18 PDT"]
[Termination "Shankland won by resignation"]

1. e4 {[%clk 0:03:00.9]} 1... a6 {[%clk 0:02:55.8]} 2. d4 {[%clk 0:03:00.2]}
2... e6 {[%clk 0:02:55.8]} 3. Bd3 {[%clk 0:02:59.8]} 3... b5 {[%clk 0:02:55.3]}
4. a4 {[%clk 0:02:59.4]} 4... b4 {[%clk 0:02:55.2]} 5. c4 {[%clk 0:02:59.6]}
5... bxc3 {[%clk 0:02:52.4]} 6. Nxc3 {[%clk 0:02:59]} 6... d6 {[%clk 0:02:51]}
7. Nf3 {[%clk 0:02:58.9]} 7... Be7 {[%clk 0:02:50.1]} 8. O-O {[%clk 0:02:58.8]}
8... Nf6 {[%clk 0:02:50]} 9. e5 {[%clk 0:02:58.9]} 9... Nfd7 {[%clk 0:02:46.3]}
10. Qe2 {[%clk 0:02:46]} 10... d5 {[%clk 0:02:43.2]} 11. h4 {[%clk 0:02:22]}
11... c5 {[%clk 0:02:37.3]} 12. dxc5 {[%clk 0:02:21]} 12... Nxc5 {[%clk
0:02:36.2]} 13. Be3 {[%clk 0:02:18.7]} 13... Nxd3 {[%clk 0:02:29.7]} 14. Qxd3
{[%clk 0:02:18.8]} 14... Nc6 {[%clk 0:02:22.3]} 15. Rac1 {[%clk 0:02:15.6]}
15... Bd7 {[%clk 0:02:20.5]} 16. Bg5 {[%clk 0:02:10.8]} 16... h6 {[%clk
0:02:07.1]} 17. Bxe7 {[%clk 0:02:09.5]} 17... Nxe7 {[%clk 0:02:08]} 18. Nd4
{[%clk 0:02:06.5]} 18... O-O {[%clk 0:02:05.6]} 19. h5 {[%clk 0:02:05.5]} 19...
Nc6 {[%clk 0:01:51.7]} 20. b3 {[%clk 0:02:00.7]} 20... Nxe5 {[%clk 0:01:43.9]}
21. Qe3 {[%clk 0:01:58.1]} 21... Qf6 {[%clk 0:01:41.1]} 22. f4 {[%clk
0:01:53.4]} 22... Nc6 {[%clk 0:01:32.8]} 23. Nce2 {[%clk 0:01:51.7]} 23... Nxd4
{[%clk 0:01:29.7]} 24. Nxd4 {[%clk 0:01:52.6]} 24... Rfc8 {[%clk 0:01:28.3]} 25.
g3 {[%clk 0:01:52.3]} 25... Rxc1 {[%clk 0:01:20.9]} 26. Rxc1 {[%clk 0:01:52.2]}
26... Rc8 {[%clk 0:01:21.1]} 27. Rxc8+ {[%clk 0:01:50.2]} 27... Bxc8 {[%clk
0:01:22]} 28. Kf2 {[%clk 0:01:50.7]} 28... Bd7 {[%clk 0:01:18]} 29. a5 {[%clk
0:01:45.9]} 29... g6 {[%clk 0:01:11.1]} 30. hxg6 {[%clk 0:01:42.3]} 30... fxg6
{[%clk 0:01:12]} 31. b4 {[%clk 0:01:41.6]} 31... g5 {[%clk 0:01:04.4]} 32. b5
{[%clk 0:01:31.3]} 32... Bxb5 {[%clk 0:00:52.3]} 33. Nxb5 {[%clk 0:01:27.7]}
33... Qb2+ {[%clk 0:00:48.1]} 34. Qe2 {[%clk 0:01:27.9]} 34... Qf6 {[%clk
0:00:36.4]} 35. Nc7 {[%clk 0:01:20.5]} 35... Kf7 {[%clk 0:00:32]} 36. Qxa6
{[%clk 0:01:15.4]} 36... Qd4+ {[%clk 0:00:27.1]} 37. Kg2 {[%clk 0:01:14.6]}
37... Qe4+ {[%clk 0:00:23.2]} 38. Kh2 {[%clk 0:01:14.4]} 38... Qc2+ {[%clk
0:00:22]} 39. Kh3 {[%clk 0:01:13.8]} 39... Qxc7 {[%clk 0:00:21.8]} 40. Qd3
{[%clk 0:01:03.8]} 40... Kf6 {[%clk 0:00:17.6]} 41. a6 {[%clk 0:01:00.9]} 41...
gxf4 {[%clk 0:00:16.8]} 42. Qf3 {[%clk 0:00:51.8]} 42... Qa5 {[%clk 0:00:14.4]}
43. Qxf4+ {[%clk 0:00:51.5]} 43... Ke7 {[%clk 0:00:14.5]} 44. Qf1 {[%clk
0:00:49.3]} 44... d4 {[%clk 0:00:13.4]} 45. Qd3 {[%clk 0:00:48.8]} 45... e5
{[%clk 0:00:13.3]} 46. a7 {[%clk 0:00:48.3]} 46... Kd6 {[%clk 0:00:08.9]} 47.
Qg6+ {[%clk 0:00:46.2]} 47... Kd5 {[%clk 0:00:07.9]} 48. Qg8+ {[%clk 0:00:45.5]}
48... Ke4 {[%clk 0:00:07.3]} 49. a8=Q+ {[%clk 0:00:46.1]} 49... Qxa8 {[%clk
0:00:06.6]} 50. Qxa8+ {[%clk 0:00:47]} 50... Ke3 {[%clk 0:00:07.4]} 51. Kg2
{[%clk 0:00:47.6]} 51... d3 {[%clk 0:00:07.5]} 52. Qf3+ {[%clk 0:00:47.4]} 52...
Kd2 {[%clk 0:00:07.5]} 53. Kf2 {[%clk 0:00:48]} 53... Kc2 {[%clk 0:00:07.2]} 54.
Ke3 {[%clk 0:00:46.5]} 54... d2 {[%clk 0:00:05.3]} 55. Qe2 {[%clk 0:00:46.7]}
1-0

[Event "Late-Titled-Tuesday-Blitz-April-02-2024"]
[Site "Chess.com"]
[Date "2024.04.02"]
[Round "7"]
[White "Kazan28"]
[Black "DrVelja"]
[Result "1-0"]
[WhiteElo "2676"]
[BlackElo "2993"]
[TimeControl "180+1"]
[EndTime "15:16:19 PDT"]
[Termination "Kazan28 won on time"]

1. d4 {[%clk 0:03:00.9]} 1... Nf6 {[%clk 0:02:57.6]} 2. c4 {[%clk 0:03:01]} 2...
e6 {[%clk 0:02:54.7]} 3. Nf3 {[%clk 0:03:00.9]} 3... d5 {[%clk 0:02:50.3]} 4. g3
{[%clk 0:03:01.1]} 4... Bb4+ {[%clk 0:02:46.2]} 5. Bd2 {[%clk 0:03:01.2]} 5...
Be7 {[%clk 0:02:41.7]} 6. Bg2 {[%clk 0:03:00.8]} 6... O-O {[%clk 0:02:42.3]} 7.
O-O {[%clk 0:03:01.5]} 7... c6 {[%clk 0:02:41.9]} 8. Bc3 {[%clk 0:03:02.2]} 8...
Ne4 {[%clk 0:02:40.5]} 9. Nbd2 {[%clk 0:03:01.7]} 9... Nxc3 {[%clk 0:02:35]} 10.
bxc3 {[%clk 0:03:02.6]} 10... b6 {[%clk 0:02:35.1]} 11. Ne5 {[%clk 0:02:52.4]}
11... Bb7 {[%clk 0:02:30.1]} 12. cxd5 {[%clk 0:02:46.8]} 12... cxd5 {[%clk
0:02:31]} 13. c4 {[%clk 0:02:47.1]} 13... Nd7 {[%clk 0:02:17.9]} 14. cxd5 {[%clk
0:02:35.6]} 14... Nxe5 {[%clk 0:02:13]} 15. d6 {[%clk 0:02:32.1]} 15... Bxg2
{[%clk 0:02:07.8]} 16. dxe7 {[%clk 0:02:31]} 16... Qxe7 {[%clk 0:02:08.7]} 17.
Kxg2 {[%clk 0:02:30.3]} 17... Nc6 {[%clk 0:02:09.4]} 18. Nf3 {[%clk 0:02:21.5]}
18... Rfd8 {[%clk 0:02:09.9]} 19. Qa4 {[%clk 0:02:16.3]} 19... Qb7 {[%clk
0:02:06.9]} 20. Rfd1 {[%clk 0:02:01.6]} 20... b5 {[%clk 0:02:04.5]} 21. Rab1
{[%clk 0:02:02.1]} 21... a6 {[%clk 0:01:36.9]} 22. Kg1 {[%clk 0:01:51]} 22...
Rac8 {[%clk 0:01:27.6]} 23. Qb3 {[%clk 0:01:42.8]} 23... Na5 {[%clk 0:01:26.9]}
24. Qb4 {[%clk 0:01:41.4]} 24... Nc4 {[%clk 0:01:09.5]} 25. a4 {[%clk
0:01:39.9]} 25... Qe4 {[%clk 0:01:08.6]} 26. Kf1 {[%clk 0:01:04.4]} 26... a5
{[%clk 0:00:48.4]} 27. Qxb5 {[%clk 0:01:02.8]} 27... Na3 {[%clk 0:00:48]} 28.
Qb7 {[%clk 0:01:02.7]} 28... Qf5 {[%clk 0:00:36.4]} 29. Rbc1 {[%clk 0:01:00.3]}
29... Nc4 {[%clk 0:00:30.4]} 30. Qb5 {[%clk 0:00:45.3]} 30... Qxb5 {[%clk
0:00:22.2]} 31. axb5 {[%clk 0:00:46.2]} 31... a4 {[%clk 0:00:13]} 32. Ne5 {[%clk
0:00:36]} 32... Nd2+ {[%clk 0:00:11.1]} 33. Kg2 {[%clk 0:00:19.5]} 33... Rxc1
{[%clk 0:00:11.7]} 34. Rxc1 {[%clk 0:00:19.8]} 34... Nb3 {[%clk 0:00:12.6]} 35.
Rc7 {[%clk 0:00:18.2]} 35... a3 {[%clk 0:00:09.5]} 36. b6 {[%clk 0:00:13.2]}
36... a2 {[%clk 0:00:08]} 37. b7 {[%clk 0:00:13.6]} 37... a1=Q {[%clk
0:00:03.1]} 38. Rc8 {[%clk 0:00:14]} 38... Qxd4 {[%clk 0:00:03.3]} 39. b8=Q
{[%clk 0:00:10.2]} 39... Qe4+ {[%clk 0:00:03.8]} 40. Nf3 {[%clk 0:00:08.9]} 1-0

[Event "Late-Titled-Tuesday-Blitz-April-02-2024"]
[Site "Chess.com"]
[Date "2024.04.02"]
[Round "7"]
[White "Zq1"]
[Black "Mops_2004"]
[Result "0-1"]
[WhiteElo "2618"]
[BlackElo "2806"]
[TimeControl "180+1"]
[EndTime "15:16:25 PDT"]
[Termination "Mops_2004 won on time"]

1. d4 {[%clk 0:03:00.9]} 1... g6 {[%clk 0:03:00.2]} 2. e4 {[%clk 0:02:59.7]}
2... Bg7 {[%clk 0:03:00.8]} 3. c3 {[%clk 0:02:59.9]} 3... d6 {[%clk 0:02:59.7]}
4. Nf3 {[%clk 0:02:59.5]} 4... Nf6 {[%clk 0:02:59.8]} 5. Bd3 {[%clk 0:02:58.3]}
5... O-O {[%clk 0:02:58]} 6. O-O {[%clk 0:02:55.2]} 6... Nc6 {[%clk 0:02:58.2]}
7. Re1 {[%clk 0:02:53.7]} 7... e5 {[%clk 0:02:58.3]} 8. d5 {[%clk 0:02:51.1]}
8... Ne7 {[%clk 0:02:57.3]} 9. c4 {[%clk 0:02:51.2]} 9... Nd7 {[%clk 0:02:54.8]}
10. Nc3 {[%clk 0:02:49.9]} 10... f5 {[%clk 0:02:55]} 11. Ng5 {[%clk 0:02:39.6]}
11... Nc5 {[%clk 0:02:51.5]} 12. b4 {[%clk 0:02:26.6]} 12... Nxd3 {[%clk
0:02:49.3]} 13. Qxd3 {[%clk 0:02:25.5]} 13... a5 {[%clk 0:02:43.7]} 14. bxa5
{[%clk 0:02:22.5]} 14... Rxa5 {[%clk 0:02:37.5]} 15. a4 {[%clk 0:02:22.4]} 15...
fxe4 {[%clk 0:01:55.2]} 16. Ngxe4 {[%clk 0:02:04.2]} 16... Nf5 {[%clk
0:01:52.2]} 17. Bd2 {[%clk 0:02:01.6]} 17... h6 {[%clk 0:01:44.3]} 18. Nb5
{[%clk 0:01:53.7]} 18... Ra6 {[%clk 0:01:44.1]} 19. c5 {[%clk 0:01:49]} 19...
dxc5 {[%clk 0:01:15]} 20. Qc4 {[%clk 0:01:39.1]} 20... Kh7 {[%clk 0:00:43.9]}
21. Nxc5 {[%clk 0:01:28.7]} 21... Raf6 {[%clk 0:00:43.1]} 22. Ne4 {[%clk
0:01:27]} 22... R6f7 {[%clk 0:00:42.5]} 23. Rac1 {[%clk 0:01:23.6]} 23... c6
{[%clk 0:00:30.5]} 24. dxc6 {[%clk 0:01:16.1]} 24... bxc6 {[%clk 0:00:31.4]} 25.
Qxc6 {[%clk 0:00:48]} 25... Bb7 {[%clk 0:00:30.7]} 26. Qc3 {[%clk 0:00:41.5]}
26... Qh4 {[%clk 0:00:12.2]} 27. f3 {[%clk 0:00:28.8]} 27... Nd4 {[%clk
0:00:11.7]} 28. Nxd4 {[%clk 0:00:24.1]} 28... exd4 {[%clk 0:00:12.6]} 29. Qd3
{[%clk 0:00:23.6]} 29... Qd8 {[%clk 0:00:08.1]} 30. a5 {[%clk 0:00:21.1]} 30...
Bd5 {[%clk 0:00:05.9]} 31. Bb4 {[%clk 0:00:20]} 31... Re8 {[%clk 0:00:05.4]} 32.
Nd6 {[%clk 0:00:17.5]} 32... Rxe1+ {[%clk 0:00:05.1]} 33. Rxe1 {[%clk
0:00:16.9]} 33... Rd7 {[%clk 0:00:04.7]} 34. Ne4 {[%clk 0:00:14.1]} 34... Qb8
{[%clk 0:00:04.9]} 35. Bd2 {[%clk 0:00:11.3]} 35... Bc6 {[%clk 0:00:04.7]} 36.
h3 {[%clk 0:00:10.3]} 36... Bb5 {[%clk 0:00:04.9]} 37. Qb3 {[%clk 0:00:08.9]}
37... Rd8 {[%clk 0:00:03.1]} 38. Nc5 {[%clk 0:00:07.6]} 38... Bc6 {[%clk
0:00:02.9]} 39. Qxb8 {[%clk 0:00:06.3]} 39... Rxb8 {[%clk 0:00:03.8]} 40. Ne4
{[%clk 0:00:05.8]} 40... d3 {[%clk 0:00:03.6]} 41. Kf2 {[%clk 0:00:04.6]} 41...
Bd4+ {[%clk 0:00:03.3]} 42. Be3 {[%clk 0:00:04.2]} 42... Rb2+ {[%clk 0:00:03.5]}
43. Kg3 {[%clk 0:00:03.6]} 43... Be5+ {[%clk 0:00:03.6]} 44. Bf4 {[%clk
0:00:02.7]} 44... Bg7 {[%clk 0:00:02.7]} 45. Rd1 {[%clk 0:00:02]} 45... Bb5
{[%clk 0:00:03.4]} 46. Be3 {[%clk 0:00:01.9]} 46... Be5+ {[%clk 0:00:03.4]} 47.
Bf4 {[%clk 0:00:01.7]} 47... Bd4 {[%clk 0:00:04]} 0-1

[Event "Late-Titled-Tuesday-Blitz-April-02-2024"]
[Site "Chess.com"]
[Date "2024.04.02"]
[Round "7"]
[White "maracayo"]
[Black "miraitrunks"]
[Result "1-0"]
[WhiteElo "2381"]
[BlackElo "2177"]
[TimeControl "180+1"]
[EndTime "15:16:26 PDT"]
[Termination "maracayo won by resignation"]

1. e4 {[%clk 0:03:00.9]} 1... c5 {[%clk 0:02:59.9]} 2. Nf3 {[%clk 0:03:00.4]}
2... d6 {[%clk 0:03:00.7]} 3. d3 {[%clk 0:02:59.9]} 3... Nf6 {[%clk 0:03:00.9]}
4. Nbd2 {[%clk 0:02:57.7]} 4... g6 {[%clk 0:03:00.8]} 5. Be2 {[%clk 0:02:57.7]}
5... Bg7 {[%clk 0:03:01.4]} 6. O-O {[%clk 0:02:58.3]} 6... O-O {[%clk
0:03:01.5]} 7. h3 {[%clk 0:02:58.8]} 7... Nc6 {[%clk 0:03:01.9]} 8. c3 {[%clk
0:02:59.3]} 8... b5 {[%clk 0:03:02.1]} 9. Re1 {[%clk 0:02:59.9]} 9... b4 {[%clk
0:03:02.2]} 10. d4 {[%clk 0:03:00.2]} 10... bxc3 {[%clk 0:03:00.8]} 11. bxc3
{[%clk 0:03:01.1]} 11... cxd4 {[%clk 0:03:01.2]} 12. cxd4 {[%clk 0:03:00.8]}
12... d5 {[%clk 0:03:01]} 13. e5 {[%clk 0:02:59.9]} 13... Ne4 {[%clk 0:03:01.1]}
14. Bd3 {[%clk 0:02:57.4]} 14... Nxd2 {[%clk 0:02:53.6]} 15. Bxd2 {[%clk
0:02:58.3]} 15... Rb8 {[%clk 0:02:51.9]} 16. Rc1 {[%clk 0:02:57.2]} 16... Qb6
{[%clk 0:02:51.6]} 17. Qa4 {[%clk 0:02:55.4]} 17... Bd7 {[%clk 0:02:48.7]} 18.
Qa3 {[%clk 0:02:08.5]} 18... Nxd4 {[%clk 0:02:39.1]} 19. Nxd4 {[%clk 0:02:06.2]}
19... Qxd4 {[%clk 0:02:38]} 20. Be3 {[%clk 0:02:05.5]} 20... Qxe5 {[%clk
0:02:26.7]} 21. Bxa7 {[%clk 0:01:59.2]} 21... Qb2 {[%clk 0:02:26.2]} 22. Qxb2
{[%clk 0:01:38.7]} 22... Rxb2 {[%clk 0:02:27.1]} 23. Rxe7 {[%clk 0:01:36.1]}
23... Be6 {[%clk 0:02:21.6]} 24. a4 {[%clk 0:01:29.2]} 24... Ra8 {[%clk
0:02:15.4]} 25. Be3 {[%clk 0:00:51.4]} 25... Bf8 {[%clk 0:01:47.6]} 26. Ra7
{[%clk 0:00:38.4]} 26... Rxa7 {[%clk 0:01:23.6]} 27. Bxa7 {[%clk 0:00:39.3]}
27... Bb4 {[%clk 0:01:13.1]} 28. Bb5 {[%clk 0:00:32.7]} 28... Bd6 {[%clk
0:00:54.6]} 29. Bd4 {[%clk 0:00:26.3]} 29... Ra2 {[%clk 0:00:51.8]} 30. g4
{[%clk 0:00:21.5]} 30... f5 {[%clk 0:00:48.3]} 31. Rc6 {[%clk 0:00:19.5]} 31...
Rd2 {[%clk 0:00:19.4]} 32. Rxd6 {[%clk 0:00:18]} 32... Rxd4 {[%clk 0:00:19.1]}
33. Rxe6 {[%clk 0:00:18.1]} 33... fxg4 {[%clk 0:00:20]} 34. hxg4 {[%clk
0:00:16.9]} 34... Rxg4+ {[%clk 0:00:19]} 35. Kf1 {[%clk 0:00:17.4]} 35... Rb4
{[%clk 0:00:18.7]} 36. Rd6 {[%clk 0:00:17.1]} 36... d4 {[%clk 0:00:18.7]} 37.
Rd7 {[%clk 0:00:16.7]} 37... Rb2 {[%clk 0:00:17.1]} 38. Rxd4 {[%clk 0:00:13.9]}
38... Kf7 {[%clk 0:00:16.7]} 39. Bc4+ {[%clk 0:00:12.9]} 39... Kf6 {[%clk
0:00:16]} 40. a5 {[%clk 0:00:13.8]} 40... Ke5 {[%clk 0:00:14.4]} 41. Rd7 {[%clk
0:00:13.5]} 41... h5 {[%clk 0:00:10.8]} 42. a6 {[%clk 0:00:13.4]} 42... Rb4
{[%clk 0:00:10.2]} 43. a7 {[%clk 0:00:12.1]} 43... Ra4 {[%clk 0:00:09.5]} 44.
Bd5 {[%clk 0:00:11.5]} 1-0

[Event "Late-Titled-Tuesday-Blitz-April-02-2024"]
[Site "Chess.com"]
[Date "2024.04.02"]
[Round "7"]
[White "GMBenjaminBok"]
[Black "Aygehovit1992"]
[Result "1-0"]
[WhiteElo "3018"]
[BlackElo "2869"]
[TimeControl "180+1"]
[EndTime "15:16:27 PDT"]
[Termination "GMBenjaminBok won by resignation"]

1. d4 {[%clk 0:03:00.9]} 1... Nf6 {[%clk 0:02:59.5]} 2. c4 {[%clk 0:03:00.7]}
2... g6 {[%clk 0:03:00.1]} 3. g3 {[%clk 0:03:00.8]} 3... Bg7 {[%clk 0:03:00.3]}
4. Bg2 {[%clk 0:03:01.4]} 4... d6 {[%clk 0:03:00.9]} 5. Nc3 {[%clk 0:03:01.7]}
5... O-O {[%clk 0:03:00.8]} 6. Nf3 {[%clk 0:03:02.2]} 6... c6 {[%clk 0:03:01.1]}
7. e4 {[%clk 0:03:01.9]} 7... Bg4 {[%clk 0:03:00.2]} 8. h3 {[%clk 0:03:01.7]}
8... Bxf3 {[%clk 0:02:58.7]} 9. Bxf3 {[%clk 0:03:02.6]} 9... e5 {[%clk
0:02:50.6]} 10. d5 {[%clk 0:03:02.5]} 10... Na6 {[%clk 0:02:43.4]} 11. Be3
{[%clk 0:03:00.5]} 11... h5 {[%clk 0:02:33.9]} 12. g4 {[%clk 0:02:52.9]} 12...
h4 {[%clk 0:02:26.7]} 13. g5 {[%clk 0:02:48.2]} 13... Nh7 {[%clk 0:02:23.5]} 14.
Qd2 {[%clk 0:02:47.9]} 14... Re8 {[%clk 0:02:14.7]} 15. O-O-O {[%clk 0:02:21.3]}
15... Bf8 {[%clk 0:02:07.1]} 16. Rhg1 {[%clk 0:02:16.6]} 16... Be7 {[%clk
0:01:55.8]} 17. Kb1 {[%clk 0:02:01.9]} 17... Nc7 {[%clk 0:01:55.4]} 18. Rg4
{[%clk 0:02:00.2]} 18... cxd5 {[%clk 0:01:55.4]} 19. exd5 {[%clk 0:01:54.3]}
19... Rc8 {[%clk 0:01:35.1]} 20. Ne4 {[%clk 0:01:42]} 20... Na6 {[%clk
0:01:35.1]} 21. Be2 {[%clk 0:01:36.7]} 21... b6 {[%clk 0:01:27.2]} 22. Rxh4
{[%clk 0:01:15]} 22... Nc5 {[%clk 0:01:27.5]} 23. Bxc5 {[%clk 0:01:14.6]} 23...
bxc5 {[%clk 0:01:25.8]} 24. Rg4 {[%clk 0:01:12.4]} 24... Rb8 {[%clk 0:01:19.1]}
25. h4 {[%clk 0:01:11.8]} 25... Rb4 {[%clk 0:01:13.1]} 26. Rg3 {[%clk
0:00:43.7]} 26... Qb6 {[%clk 0:01:06.4]} 27. a3 {[%clk 0:00:38.5]} 27... Rb3
{[%clk 0:01:06.1]} 28. Rxb3 {[%clk 0:00:21.3]} 28... Qxb3 {[%clk 0:01:07]} 29.
Qc3 {[%clk 0:00:20.9]} 29... Qxc3 {[%clk 0:01:07.1]} 30. Nxc3 {[%clk 0:00:19.3]}
30... Rb8 {[%clk 0:01:04.4]} 31. Kc2 {[%clk 0:00:17.5]} 31... Kg7 {[%clk
0:01:03.2]} 32. Rg1 {[%clk 0:00:16.4]} 32... Nf8 {[%clk 0:01:02.6]} 33. Ne4
{[%clk 0:00:13.7]} 33... Nd7 {[%clk 0:01:02.6]} 34. h5 {[%clk 0:00:14.3]} 34...
gxh5 {[%clk 0:01:01.4]} 35. Bxh5 {[%clk 0:00:15.2]} 35... Rh8 {[%clk 0:01:01]}
36. Bg4 {[%clk 0:00:15.3]} 36... Nb6 {[%clk 0:01:01.4]} 37. b3 {[%clk
0:00:14.9]} 37... Rh2 {[%clk 0:01:01.6]} 38. Bf3 {[%clk 0:00:11.1]} 38... a5
{[%clk 0:01:01.6]} 39. Rh1 {[%clk 0:00:10.9]} 39... Rxh1 {[%clk 0:01:00]} 40.
Bxh1 {[%clk 0:00:11.8]} 40... Kg6 {[%clk 0:00:58.9]} 41. Bg2 {[%clk 0:00:11.6]}
41... Kf5 {[%clk 0:00:57.3]} 42. Kd3 {[%clk 0:00:11.4]} 42... Kf4 {[%clk
0:00:57.3]} 43. Bh3 {[%clk 0:00:10.7]} 43... Bxg5 {[%clk 0:00:56.7]} 44. Nxd6
{[%clk 0:00:09.8]} 44... a4 {[%clk 0:00:56.2]} 45. bxa4 {[%clk 0:00:07.3]} 45...
Nxa4 {[%clk 0:00:57.1]} 46. Nxf7 {[%clk 0:00:07.4]} 46... e4+ {[%clk 0:00:57.1]}
47. Kc2 {[%clk 0:00:06.7]} 47... Nb6 {[%clk 0:00:53.4]} 48. Nxg5 {[%clk
0:00:05.5]} 48... Kxg5 {[%clk 0:00:53.3]} 49. Kb3 {[%clk 0:00:05.2]} 49... Kf6
{[%clk 0:00:52.3]} 50. a4 {[%clk 0:00:05]} 50... Ke5 {[%clk 0:00:52.7]} 51. a5
{[%clk 0:00:05.7]} 51... Na8 {[%clk 0:00:49.2]} 52. a6 {[%clk 0:00:05.7]} 52...
Kd6 {[%clk 0:00:45]} 53. Bc8 {[%clk 0:00:05.2]} 53... Kc7 {[%clk 0:00:40.6]} 54.
Bb7 {[%clk 0:00:05.4]} 54... Nb6 {[%clk 0:00:41.3]} 55. d6+ {[%clk 0:00:05.3]}
55... Kb8 {[%clk 0:00:41.5]} 56. Bc6 {[%clk 0:00:03.1]} 56... Ka7 {[%clk
0:00:27.5]} 57. d7 {[%clk 0:00:03.2]} 57... e3 {[%clk 0:00:27.6]} 58. fxe3
{[%clk 0:00:03.2]} 1-0